bitfinex-derivatives/quotes_BTCF0:USTF0_20240929
["timestamp","ask_amount","ask_price","bid_price","bid_amount"]
[1727587137677,0.04269224,65761.0,65759.0,0.14676216]
[1727587137874,0.12,65762.0,65759.0,0.14676216]
[1727587138076,0.04267823,65761.0,65759.0,0.14676216]
[1727587138274,0.076022,65760.0,65759.0,0.14676216]
[1727587140974,0.077022,65760.0,65759.0,0.14676216]
[1727587142078,0.077022,65760.0,65759.0,0.24192707]
[1727587144184,0.077022,65760.0,65759.0,0.35535212]
[1727587144371,0.077022,65760.0,65759.0,0.24192707]
[1727587147379,0.077022,65760.0,65759.0,0.35539672]
[1727587147579,0.077022,65760.0,65759.0,0.24192707]
[1727587148986,0.077022,65760.0,65759.0,0.24195806]
[1727587149187,0.077022,65760.0,65759.0,0.14676216]
[1727587157080,0.077022,65760.0,65759.0,0.35535009]
[1727587157287,0.077022,65760.0,65759.0,0.20858793]
[1727587157984,0.077022,65760.0,65759.0,0.09516039]
[1727587160190,0.077022,65760.0,65759.0,0.20857473]
[1727587163687,0.077022,65760.0,65759.0,0.2086006]
[1727587164193,0.077022,65760.0,65759.0,0.09516617]
[1727587168897,0.076023,65759.0,65758.0,0.03096237]
[1727587169098,0.076023,65759.0,65758.0,0.12265583]
[1727587170884,0.227423,65759.0,65758.0,0.12265583]
[1727587171301,0.107423,65759.0,65758.0,0.12265583]
[1727587172188,0.15010262,65759.0,65758.0,0.02746237]
[1727587172392,0.15010262,65759.0,65757.0,0.12]
[1727587172598,0.11870362,65758.0,65757.0,0.12]
[1727587174195,0.11870362,65758.0,65757.0,0.122]
[1727587174497,0.11870362,65758.0,65757.0,0.15004052]
[1727587174886,0.11870362,65758.0,65757.0,0.15104052]
[1727587178989,0.11868724,65758.0,65757.0,0.15104052]
[1727587179187,0.076024,65758.0,65757.0,0.35976885]
[1727587180890,0.076024,65758.0,65757.0,0.33172833]
[1727587183891,0.076024,65758.0,65757.0,0.33170759]
[1727587187400,0.076024,65758.0,65757.0,0.123]
[1727587188307,0.076024,65758.0,65757.0,0.003]
[1727587194309,0.076024,65758.0,65757.0,0.09822965]
[1727587195905,0.076024,65758.0,65757.0,0.18949908]
[1727587196411,0.076024,65758.0,65757.0,0.09822965]
[1727587202112,0.076024,65758.0,65757.0,0.09829413]
[1727587206905,0.076024,65758.0,65757.0,0.09826387]
[1727587207510,0.076024,65758.0,65757.0,0.1895333]
[1727587207717,0.076024,65758.0,65757.0,0.18952135]
[1727587207918,0.076024,65758.0,65757.0,0.09826387]
[1727587208314,0.076024,65758.0,65757.0,0.18952579]
[1727587209216,0.11868237,65758.0,65757.0,0.003]
[1727587210411,0.44132,65763.0,65757.0,0.3638]
[1727587210611,0.04282146,65762.0,65758.0,0.076024]
[1727587210827,0.3643,65763.0,65758.0,0.076024]
[1727587210828,0.04282146,65761.0,65758.0,0.076024]
[1727587211018,0.3643,65763.0,65758.0,0.076024]
[1727587211209,0.440319,65763.0,65762.0,0.12]
[1727587211410,0.4796112,65763.0,65762.0,0.12]
[1727587211819,0.47960677,65763.0,65762.0,0.12]
[1727587212025,0.11880677,65763.0,65762.0,0.12]
[1727587214319,0.11880677,65763.0,65760.0,0.12]
[1727587214320,0.076022,65761.0,65760.0,0.12]
[1727587214507,0.11880977,65761.0,65760.0,0.12]
[1727587214915,0.076022,65761.0,65760.0,0.12]
[1727587215525,0.076024,65758.0,65757.0,0.3651]
[1727587215718,0.076024,65758.0,65757.0,0.0008]
[1727587216022,0.076024,65758.0,65754.0,0.02765986]
[1727587216220,0.076024,65758.0,65753.0,0.19603]
[1727587216615,0.076027,65756.0,65753.0,0.19603]
[1727587217016,0.076027,65756.0,65753.0,0.22280619]
[1727587217212,0.076027,65756.0,65754.0,0.20880386]
[1727587217417,0.076027,65756.0,65755.0,0.20880386]
[1727587219321,0.076027,65756.0,65755.0,0.21180386]
[1727587221027,0.076027,65756.0,65755.0,0.21181537]
[1727587221223,0.076027,65756.0,65755.0,0.21581537]
[1727587221524,0.076027,65756.0,65755.0,0.21584829]
[1727587224221,0.076027,65756.0,65755.0,0.007]
[1727587231333,0.076027,65756.0,65755.0,0.21590619]
[1727587239431,0.076027,65756.0,65755.0,0.007]
[1727587246545,0.076027,65756.0,65755.0,0.32248687]
[1727587250350,0.076027,65756.0,65755.0,0.21601878]
[1727587251548,0.076027,65756.0,65755.0,0.32248687]
[1727587252456,0.076027,65756.0,65755.0,0.45446811]
[1727587254453,0.076027,65756.0,65755.0,0.007]
[1727587261549,0.076027,65756.0,65755.0,0.45446182]
[1727587263367,0.076027,65756.0,65755.0,0.32249192]
[1727587263958,0.076027,65756.0,65755.0,0.45447937]
[1727587269559,0.076027,65756.0,65755.0,0.21602383]
[1727587273469,0.076027,65756.0,65755.0,0.10235925]
[1727587274263,0.076027,65756.0,65755.0,0.1023887]
[1727587274464,0.076027,65756.0,65755.0,0.21607071]
[1727587276569,0.436821,65761.0,65756.0,0.076027]
[1727587276772,0.04253073,65760.0,65759.0,0.12]
[1727587279060,0.04248169,65760.0,65759.0,0.12]
[1727587283769,0.04245417,65760.0,65759.0,0.12]
[1727587284468,0.436821,65761.0,65759.0,0.21543502]
[1727587284669,0.0035,65762.0,65760.0,0.20918991]
[1727587284868,0.0342,65766.0,65765.0,0.076016]
[1727587284869,0.0035,65766.0,65765.0,0.076016]
[1727587285078,0.0035,65772.0,65770.0,0.07601]
[1727587285382,0.0035,65776.0,65771.0,0.75581323]
[1727587285680,0.23099093,65782.0,65776.0,0.11]
[1727587285681,0.0035,65780.0,65776.0,0.11]
[1727587285890,0.0035,65780.0,65776.0,0.20543502]
[1727587286472,0.079499,65780.0,65776.0,0.20426985]
[1727587286880,0.0102817,65777.0,65776.0,0.20526985]
[1727587288581,0.0102817,65777.0,65776.0,0.28093186]
[1727587288879,0.0152817,65777.0,65776.0,0.28193186]
[1727587289581,0.0152817,65777.0,65776.0,0.187783]
[1727587290770,0.0152817,65777.0,65776.0,0.112]
[1727587291579,0.0152817,65777.0,65776.0,0.1574405]
[1727587291883,0.0152817,65777.0,65776.0,0.18455927]
[1727587292586,0.0152817,65777.0,65776.0,0.13911877]
[1727587297688,0.0152817,65777.0,65776.0,0.112]
[1727587298490,0.0152817,65777.0,65776.0,0.002]
[1727587316395,0.0152817,65777.0,65776.0,0.078004]
[1727587316687,0.0152817,65777.0,65776.0,0.188004]
[1727587318888,0.0152817,65777.0,65776.0,0.078004]
[1727587322898,0.0142817,65777.0,65776.0,0.078004]
[1727587329899,0.0142817,65777.0,65776.0,0.188004]
[1727587330091,0.0035,65782.0,65776.0,0.112]
[1727587330297,0.0035,65786.0,65781.0,0.3608]
[1727587330495,0.3643,65789.0,65786.0,0.075992]
[1727587330690,0.3608,65789.0,65788.0,0.11]
[1727587331095,0.189484,65793.0,65788.0,0.11]
[1727587331291,0.185984,65793.0,65788.0,0.11]
[1727587331599,0.11,65790.0,65787.0,0.3608]
[1727587332294,0.11,65790.0,65786.0,0.0035]
[1727587332496,0.11,65787.0,65786.0,0.0035]
[1727587332804,0.11,65787.0,65782.0,0.1445]
[1727587332999,0.11,65787.0,65783.0,0.02376229]
[1727587334202,0.11,65787.0,65786.0,0.001]
[1727587334798,0.11,65787.0,65783.0,0.02576229]
[1727587334995,0.436788,65790.0,65783.0,0.02576229]
[1727587335197,0.11,65787.0,65783.0,0.02576229]
[1727587336007,0.11,65787.0,65784.0,0.02376229]
[1727587336697,0.111,65787.0,65786.0,0.001]
[1727587337401,0.112,65787.0,65786.0,0.001]
[1727587338000,0.112,65787.0,65786.0,0.002]
[1727587340203,0.002,65787.0,65786.0,0.077992]
[1727587343304,0.001,65787.0,65786.0,0.076992]
[1727587343601,0.001,65787.0,65786.0,0.075992]
[1727587343805,0.002,65787.0,65786.0,0.075992]
[1727587348707,0.002,65787.0,65783.0,0.38893597]
[1727587349012,0.002,65787.0,65783.0,0.38809597]
[1727587350407,0.001,65787.0,65783.0,0.02729597]
[1727587350609,0.001,65787.0,65782.0,0.0345]
[1727587350610,0.002,65787.0,65782.0,0.0345]
[1727587350910,0.002,65787.0,65783.0,0.3608]
[1727587351110,0.002,65787.0,65783.0,0.38456182]
[1727587351910,0.002,65787.0,65783.0,0.02376182]
[1727587352112,0.077991,65787.0,65783.0,0.38456182]
[1727587352312,0.077991,65787.0,65783.0,0.46055682]
[1727587352717,0.077991,65787.0,65783.0,0.075995]
[1727587353105,0.077991,65787.0,65783.0,0.436795]
[1727587353519,0.077991,65787.0,65783.0,0.075995]
[1727587353721,0.077991,65787.0,65783.0,0.436795]
[1727587354011,0.077991,65787.0,65783.0,0.075995]
[1727587354207,0.077991,65787.0,65784.0,0.02376182]
[1727587355417,0.077991,65787.0,65783.0,0.437675]
[1727587355418,0.076991,65787.0,65783.0,0.437675]
[1727587355715,0.077991,65787.0,65783.0,0.075995]
[1727587356213,0.077991,65787.0,65783.0,0.436795]
[1727587356417,0.077991,65787.0,65783.0,0.075995]
[1727587356609,0.076991,65787.0,65783.0,0.075995]
[1727587356917,0.077991,65787.0,65783.0,0.436795]
[1727587357107,0.077991,65787.0,65783.0,0.075995]
[1727587357303,0.077991,65787.0,65783.0,0.436795]
[1727587358118,0.077991,65787.0,65783.0,0.075995]
[1727587358310,0.077991,65787.0,65783.0,0.436795]
[1727587359118,0.077991,65787.0,65783.0,0.075995]
[1727587359819,0.077991,65787.0,65783.0,0.436795]
[1727587360017,0.077991,65787.0,65783.0,0.075995]
[1727587360211,0.077991,65787.0,65783.0,0.436795]
[1727587360612,0.077991,65787.0,65783.0,0.075995]
[1727587361113,0.077991,65787.0,65783.0,0.436795]
[1727587361620,0.077991,65787.0,65783.0,0.075995]
[1727587362721,0.077991,65787.0,65783.0,0.436795]
[1727587363220,0.077991,65787.0,65783.0,0.075995]
[1727587363422,0.077991,65787.0,65783.0,0.436795]
[1727587364320,0.077991,65787.0,65783.0,0.075995]
[1727587364522,0.077991,65787.0,65783.0,0.436795]
[1727587365822,0.077991,65787.0,65783.0,0.075995]
[1727587366122,0.077991,65787.0,65783.0,0.436795]
[1727587366936,0.077991,65787.0,65784.0,0.075994]
[1727587368114,0.076991,65787.0,65784.0,0.075994]
[1727587368319,0.077991,65787.0,65784.0,0.075994]
[1727587373833,0.002,65787.0,65784.0,0.075994]
[1727587377923,0.002,65787.0,65785.0,0.075993]
[1727587380635,0.002,65787.0,65785.0,0.09975427]
[1727587380827,0.002,65787.0,65786.0,0.02376138]
[1727587381023,0.002,65787.0,65785.0,0.075993]
[1727587383128,0.002,65787.0,65786.0,0.02376136]
[1727587385934,0.001,65787.0,65786.0,0.02376136]
[1727587386123,0.002,65787.0,65786.0,0.02376136]
[1727587387130,0.002,65787.0,65786.0,0.09975336]
[1727587391542,0.002,65787.0,65786.0,0.075992]
[1727587392236,0.002,65787.0,65786.0,0.09975373]
[1727587399348,0.002,65787.0,65786.0,0.075992]
[1727587402251,0.002,65787.0,65783.0,0.47168]
[1727587402454,0.002,65787.0,65786.0,0.02376163]
[1727587402654,0.002,65787.0,65784.0,0.02376163]
[1727587403354,0.002,65787.0,65786.0,0.02376163]
[1727587405857,0.002,65787.0,65784.0,0.075994]
[1727587406357,0.002,65787.0,65785.0,0.02376163]
[1727587406658,0.002,65787.0,65784.0,0.075994]
[1727587407449,0.002,65787.0,65785.0,0.075992]
[1727587410756,0.002,65787.0,65786.0,0.04752326]
[1727587412462,0.002,65787.0,65786.0,0.1414535]
[1727587412755,0.002,65787.0,65786.0,0.31137574]
[1727587414868,0.002,65787.0,65786.0,0.28761411]
[1727587415768,0.002,65787.0,65786.0,0.37874407]
[1727587416164,0.002,65787.0,65786.0,0.28481383]
[1727587416562,0.002,65787.0,65786.0,0.37874774]
[1727587416763,0.002,65787.0,65786.0,0.28761778]
[1727587417866,0.002,65787.0,65786.0,0.19368647]
[1727587420465,0.002,65787.0,65786.0,0.09975363]
[1727587423362,0.002,65787.0,65786.0,0.20975363]
[1727587423770,0.002,65787.0,65786.0,0.25531332]
[1727587424179,0.002,65787.0,65786.0,0.23155169]
[1727587424480,0.002,65787.0,65786.0,0.2553124]
[1727587424875,0.002,65787.0,65786.0,0.20975271]
[1727587427371,0.002,65787.0,65786.0,0.41832284]
[1727587427780,0.002,65787.0,65786.0,0.30490498]
[1727587427981,0.002,65787.0,65786.0,0.30489842]
[1727587428281,0.002,65787.0,65786.0,1.36093842]
[1727587428479,0.0035,65792.0,65791.0,0.075986]
[1727587428683,0.3608,65795.0,65793.0,0.075983]
[1727587428983,0.3608,65795.0,65794.0,0.17086012]
[1727587429174,0.3608,65795.0,65794.0,0.07588861]
[1727587429576,0.3608,65795.0,65793.0,0.15187161]
[1727587431473,0.3618,65795.0,65793.0,0.15287161]
[1727587431884,0.3618,65795.0,65793.0,0.15387161]
[1727587432071,0.3618,65795.0,65794.0,0.07588861]
[1727587432285,0.3618,65795.0,65793.0,0.15387161]
[1727587432582,0.3618,65795.0,65794.0,0.07588861]
[1727587432775,0.3618,65795.0,65793.0,0.15387161]
[1727587432971,0.3618,65795.0,65793.0,0.18130913]
[1727587433176,0.001,65795.0,65793.0,0.18130913]
[1727587433790,0.001,65795.0,65793.0,0.10532613]
[1727587434179,0.001,65795.0,65794.0,0.001]
[1727587435086,0.001,65795.0,65793.0,0.10532613]
[1727587435481,0.001,65795.0,65793.0,0.02943752]
[1727587436990,0.001,65795.0,65794.0,0.001]
[1727587437883,0.21898,65797.0,65794.0,0.001]
[1727587438587,0.11,65795.0,65794.0,0.001]
[1727587439582,0.11,65795.0,65794.0,0.002]
[1727587440684,0.185982,65795.0,65794.0,0.002]
[1727587445893,0.185982,65795.0,65794.0,0.06269711]
[1727587446296,0.185982,65795.0,65794.0,0.002]
[1727587446495,0.185982,65795.0,65794.0,0.06269715]
[1727587447293,0.185982,65795.0,65794.0,0.002]
[1727587447691,0.546782,65795.0,65794.0,0.002]
[1727587450599,0.58932826,65795.0,65794.0,0.002]
[1727587450802,0.58932827,65795.0,65794.0,0.002]
[1727587452200,1.15173232,65795.0,65794.0,0.002]
[1727587452501,1.09468607,65795.0,65794.0,0.002]
[1727587452902,0.63872607,65795.0,65794.0,0.002]
[1727587456608,0.27792607,65795.0,65794.0,0.002]
[1727587457009,0.63872607,65795.0,65794.0,0.002]
[1727587457708,0.546782,65795.0,65794.0,0.002]
[1727587458694,0.185982,65795.0,65794.0,0.002]
[1727587458902,0.546782,65795.0,65794.0,0.002]
[1727587462711,0.185982,65795.0,65794.0,0.002]
[1727587462914,0.546782,65795.0,65794.0,0.002]
[1727587463103,0.185982,65795.0,65794.0,0.002]
[1727587463417,0.546782,65795.0,65794.0,0.002]
[1727587463798,0.185982,65795.0,65794.0,0.002]
[1727587464004,0.546782,65795.0,65794.0,0.002]
[1727587464214,0.185982,65795.0,65794.0,0.002]
[1727587464515,0.546782,65795.0,65794.0,0.002]
[1727587465314,0.622764,65795.0,65794.0,0.002]
[1727587465707,0.66489202,65795.0,65794.0,0.002]
[1727587466507,1.72085202,65795.0,65794.0,0.002]
[1727587467707,1.12085202,65795.0,65794.0,0.002]
[1727587467909,1.16970567,65795.0,65794.0,0.002]
[1727587469005,0.76426473,65795.0,65787.0,0.007]
[1727587469217,0.4808,65788.0,65787.0,0.0035]
[1727587469525,0.075996,65783.0,65782.0,0.0035]
[1727587469818,0.075997,65782.0,65781.0,0.032]
[1727587472815,0.075997,65782.0,65781.0,0.2033931]
[1727587473216,0.076997,65782.0,65781.0,0.2033931]
[1727587475214,0.076997,65782.0,65781.0,0.20339873]
[1727587476019,0.076997,65782.0,65781.0,0.10788861]
[1727587476219,0.076997,65782.0,65781.0,0.20343827]
[1727587476422,0.076997,65782.0,65781.0,0.10788861]
[1727587476608,0.076997,65782.0,65781.0,0.20342643]
[1727587476813,0.076997,65782.0,65781.0,0.10788861]
[1727587477313,0.076997,65782.0,65781.0,0.20343016]
[1727587479223,0.076997,65782.0,65781.0,0.10788861]
[1727587484226,0.076997,65782.0,65781.0,0.09269688]
[1727587484613,0.076997,65782.0,65781.0,0.032]
[1727587485323,0.076997,65782.0,65781.0,0.142]
[1727587491531,0.11893299,65782.0,65781.0,0.142]
[1727587491930,0.11893418,65782.0,65781.0,0.142]
[1727587493335,0.11893418,65782.0,65781.0,0.032]
[1727587495536,0.076997,65782.0,65781.0,0.12769766]
[1727587496940,0.076997,65782.0,65781.0,0.12772126]
[1727587497442,0.076997,65782.0,65781.0,0.07597699]
[1727587497735,0.076997,65782.0,65778.0,0.02795477]
[1727587497934,0.001,65782.0,65779.0,0.18679649]
[1727587498132,0.075998,65781.0,65780.0,0.09572986]
[1727587498438,0.075998,65781.0,65780.0,0.18679649]
[1727587499431,0.556798,65781.0,65780.0,0.09572986]
[1727587499638,0.556798,65781.0,65778.0,0.001]
[1727587500331,0.556798,65781.0,65776.0,0.007]
[1727587500332,0.076003,65777.0,65776.0,0.007]
[1727587500627,0.076003,65777.0,65776.0,0.17219081]
[1727587500628,0.272006,65777.0,65776.0,0.17219081]
[1727587500829,0.076007,65773.0,65772.0,0.0035]
[1727587501136,0.076007,65773.0,65772.0,0.09625131]
[1727587501137,0.556807,65773.0,65772.0,0.09625131]
[1727587501637,0.076008,65772.0,65771.0,0.07597434]
[1727587501836,0.073008,65772.0,65771.0,0.17221445]
[1727587502032,0.073008,65772.0,65771.0,0.26846052]
[1727587502543,0.073008,65772.0,65771.0,0.09624011]
[1727587502544,0.063008,65772.0,65771.0,0.09624011]
[1727587502736,0.063008,65772.0,65771.0,0.21624011]
[1727587503337,0.063008,65772.0,65771.0,0.22424011]
[1727587504548,0.063008,65772.0,65771.0,0.21424011]
[1727587504735,0.3608,65773.0,65771.0,0.29024911]
[1727587504930,0.3608,65773.0,65771.0,0.34481441]
[1727587504931,0.001,65772.0,65771.0,0.34481441]
[1727587505244,0.001,65772.0,65771.0,0.29924911]
[1727587505445,0.001,65772.0,65771.0,1.35536911]
[1727587506334,0.0035,65777.0,65771.0,1.45091868]
[1727587506638,0.0035,65777.0,65776.0,0.4708]
[1727587506839,0.42091932,65781.0,65776.0,0.546804]
[1727587507136,0.42091932,65781.0,65780.0,0.11]
[1727587507446,0.41741932,65781.0,65780.0,0.11]
[1727587509135,0.41841932,65781.0,65780.0,0.11]
[1727587510644,0.41841932,65781.0,65780.0,0.20553177]
[1727587512847,0.41841932,65781.0,65780.0,0.28140494]
[1727587513147,0.41841932,65781.0,65780.0,0.18587317]
[1727587513351,0.41841932,65781.0,65780.0,0.28147375]
[1727587513641,0.41841932,65781.0,65780.0,0.28148455]
[1727587513843,0.41841932,65781.0,65780.0,0.28147961]
[1727587514048,0.41841932,65781.0,65780.0,0.07587317]
[1727587514949,0.49441732,65781.0,65779.0,0.18587317]
[1727587515450,0.49441732,65781.0,65780.0,0.07587317]
[1727587515639,0.49441732,65781.0,65780.0,0.17146781]
[1727587516743,0.49341732,65781.0,65780.0,0.17146781]
[1727587517652,0.49341732,65781.0,65779.0,0.11]
[1727587519049,0.49341732,65781.0,65779.0,0.111]
[1727587522457,0.075999,65780.0,65779.0,0.111]
[1727587532486,0.075999,65780.0,65779.0,0.15652362]
[1727587532786,0.075999,65780.0,65779.0,0.20653691]
[1727587533483,0.075999,65780.0,65779.0,0.29760354]
[1727587533878,0.075999,65780.0,65779.0,0.29762887]
[1727587534471,0.075999,65780.0,65779.0,0.20656224]
[1727587535386,0.075999,65780.0,65779.0,0.32054531]
[1727587537180,0.075999,65780.0,65779.0,0.20656224]
[1727587538677,0.075999,65780.0,65779.0,0.111]
[1727587538873,0.075999,65780.0,65779.0,0.20662135]
[1727587540581,0.075999,65780.0,65779.0,0.111]
[1727587541381,0.075999,65780.0,65779.0,0.001]
[1727587541587,0.23810383,65780.0,65779.0,0.001]
[1727587543496,0.11810383,65780.0,65779.0,0.001]
[1727587543693,0.11796578,65780.0,65779.0,0.001]
[1727587546285,0.11797742,65780.0,65779.0,0.001]
[1727587546596,0.075999,65780.0,65779.0,0.001]
[1727587547785,0.075999,65780.0,65779.0,0.09670813]
[1727587548487,0.075999,65780.0,65779.0,0.09669491]
[1727587555794,0.11801379,65780.0,65779.0,0.001]
[1727587558498,0.11800985,65780.0,65779.0,0.001]
[1727587561898,0.11800644,65780.0,65779.0,0.001]
[1727587562794,0.075999,65780.0,65779.0,0.21065537]
[1727587570795,0.075999,65780.0,65779.0,0.09664737]
[1727587571597,0.075999,65780.0,65779.0,0.001]
[1727587571806,0.075999,65780.0,65779.0,0.09669407]
[1727587577797,0.11804507,65780.0,65779.0,0.001]
[1727587581597,0.11802733,65780.0,65779.0,0.001]
[1727587585714,0.075999,65780.0,65779.0,0.21083408]
[1727587586718,0.075999,65780.0,65779.0,0.21083511]
[1727587592912,0.11803209,65780.0,65779.0,0.001]
[1727587596518,0.11804393,65780.0,65779.0,0.001]
[1727587600221,0.075999,65780.0,65779.0,0.001]
[1727587600538,0.11805225,65780.0,65779.0,0.001]
[1727587600829,0.075999,65780.0,65779.0,0.09673058]
[1727587601826,0.3608,65783.0,65779.0,0.2108271]
[1727587602025,0.3608,65783.0,65782.0,0.11]
[1727587602225,0.3608,65783.0,65782.0,0.20573058]
[1727587603030,0.436796,65783.0,65782.0,0.20573058]
[1727587603432,0.436796,65783.0,65782.0,0.29692932]
[1727587604833,0.440796,65783.0,65782.0,0.29692932]
[1727587606433,0.440796,65783.0,65782.0,0.29681552]
[1727587607930,0.440796,65783.0,65782.0,0.20561678]
[1727587611539,0.440796,65783.0,65782.0,0.20557057]
[1727587613041,0.440796,65783.0,65782.0,0.09557057]
[1727587613636,0.440796,65783.0,65782.0,0.17154226]
[1727587613942,0.079996,65783.0,65782.0,0.17149475]
[1727587615949,0.079996,65783.0,65780.0,0.11]
[1727587615950,0.1221933,65783.0,65780.0,0.11]
[1727587616237,0.079996,65783.0,65780.0,0.11]
[1727587616438,0.11819095,65782.0,65780.0,0.11]
[1727587616645,0.075997,65782.0,65780.0,0.11]
[1727587622946,0.075997,65782.0,65781.0,0.18671679]
[1727587624456,0.076997,65782.0,65781.0,0.18671679]
[1727587624850,0.077997,65782.0,65781.0,0.18671679]
[1727587630859,0.12020979,65782.0,65780.0,0.11]
[1727587631051,0.077997,65782.0,65780.0,0.11]
[1727587631252,0.04221282,65781.0,65780.0,0.11]
[1727587634459,0.075997,65782.0,65780.0,0.11]
[1727587634654,0.04221166,65781.0,65780.0,0.11]
[1727587637962,0.075997,65782.0,65780.0,0.20560711]
[1727587638164,0.075997,65782.0,65781.0,0.09560711]
[1727587640372,0.076997,65782.0,65781.0,0.09560711]
[1727587640774,0.077997,65782.0,65781.0,0.18680585]
[1727587644365,0.077997,65782.0,65781.0,0.18677744]
[1727587644859,0.002,65782.0,65781.0,0.18677744]
[1727587645673,0.002,65782.0,65781.0,0.26277544]
[1727587645972,0.002,65782.0,65781.0,0.075998]
[1727587653085,0.002,65782.0,65781.0,0.26278]
[1727587656173,0.002,65782.0,65781.0,0.186782]
[1727587656681,0.002,65782.0,65781.0,0.09558326]
[1727587657484,0.002,65782.0,65781.0,0.186782]
[1727587659286,0.002,65782.0,65781.0,0.18676717]
[1727587660187,0.002,65782.0,65781.0,0.09556843]
[1727587660385,0.002,65782.0,65780.0,0.185999]
[1727587660686,0.002,65782.0,65781.0,0.09558601]
[1727587661788,0.001,65782.0,65781.0,0.09558601]
[1727587662890,0.001,65782.0,65781.0,0.18678475]
[1727587663590,0.002,65782.0,65781.0,0.18678475]
[1727587664074,0.002,65782.0,65781.0,0.09119874]
[1727587664279,0.002,65782.0,65781.0,0.1867973]
[1727587664879,0.002,65782.0,65781.0,0.09559856]
[1727587666089,0.002,65782.0,65781.0,0.17159656]
[1727587667188,0.002,65782.0,65781.0,0.19535994]
[1727587667586,0.002,65782.0,65781.0,0.19535984]
[1727587668088,0.002,65782.0,65781.0,0.09976128]
[1727587669190,0.0035,65785.0,65781.0,0.02376328]
[1727587669487,0.0035,65785.0,65784.0,0.59238285]
[1727587669694,0.0035,65789.0,65785.0,0.075993]
[1727587670189,0.0035,65789.0,65784.0,0.40718866]
[1727587670190,0.12,65786.0,65784.0,1e-06]
[1727587670391,0.12,65786.0,65778.0,0.0035]
[1727587670392,0.87053942,65785.0,65769.0,0.06075761]
[1727587670581,0.436809,65771.0,65770.0,0.02376569]
[1727587670782,0.47929327,65771.0,65770.0,0.02376569]
[1727587671189,0.58567251,65771.0,65770.0,0.02376569]
[1727587671391,0.47929327,65771.0,65770.0,0.02376569]
[1727587672192,0.49029327,65771.0,65770.0,0.02476569]
[1727587672383,0.61029327,65771.0,65770.0,0.02476569]
[1727587672900,0.61029327,65771.0,65770.0,0.02576569]
[1727587673483,0.567809,65771.0,65770.0,0.02576569]
[1727587675091,0.447809,65771.0,65770.0,0.02576569]
[1727587677300,0.447809,65771.0,65770.0,0.002]
[1727587679593,0.087009,65771.0,65770.0,0.002]
[1727587679894,0.447809,65771.0,65770.0,0.002]
[1727587705206,0.447809,65771.0,65770.0,0.09719676]
[1727587705613,0.087009,65771.0,65770.0,0.09719676]
[1727587705807,0.447809,65771.0,65770.0,0.09719676]
[1727587706008,0.087009,65771.0,65770.0,0.09719676]
[1727587706205,0.447809,65771.0,65770.0,0.09719676]
[1727587706513,0.447809,65771.0,65770.0,0.21068568]
[1727587706809,0.447809,65771.0,65770.0,0.21070163]
[1727587711716,0.447809,65771.0,65770.0,0.2107467]
[1727587716216,0.447809,65771.0,65770.0,0.21074374]
[1727587720414,0.447809,65771.0,65770.0,0.002]
[1727587726628,0.447809,65771.0,65770.0,0.122]
[1727587728316,0.447809,65771.0,65770.0,0.33077197]
[1727587731117,0.447809,65771.0,65770.0,0.21077197]
[1727587731724,0.447809,65771.0,65770.0,0.21074286]
[1727587735221,0.447809,65771.0,65770.0,0.002]
[1727587738726,0.087009,65771.0,65770.0,0.002]
[1727587743237,0.087009,65771.0,65770.0,0.21063808]
[1727587758343,0.087009,65771.0,65770.0,0.002]
[1727587765349,0.087009,65771.0,65770.0,0.21057371]
[1727587769650,0.087009,65771.0,65770.0,0.11541509]
[1727587769860,0.087009,65771.0,65770.0,0.21056503]
[1727587773450,0.087009,65771.0,65770.0,0.002]
[1727587774453,0.087009,65771.0,65770.0,0.122]
[1727587780361,0.087009,65771.0,65770.0,0.33053215]
[1727587784768,0.087009,65771.0,65770.0,0.33048638]
[1727587788463,0.087009,65771.0,65770.0,0.122]
[1727587795378,0.087009,65771.0,65770.0,0.21713475]
[1727587796971,0.087009,65771.0,65770.0,0.09713475]
[1727587803571,0.1298458,65771.0,65770.0,0.002]
[1727587803970,0.1298458,65771.0,65770.0,0.122]
[1727587810482,0.087009,65771.0,65770.0,0.21708424]
[1727587817487,0.087009,65771.0,65770.0,0.21709631]
[1727587819084,0.087009,65771.0,65770.0,0.30836498]
[1727587820892,0.087009,65771.0,65770.0,0.18836498]
[1727587821081,0.011,65771.0,65770.0,0.26437598]
[1727587822404,0.011,65771.0,65770.0,0.17310731]
[1727587822577,0.011,65771.0,65770.0,0.17303082]
[1727587825581,0.05391271,65771.0,65770.0,0.078011]
[1727587827098,0.011,65771.0,65770.0,0.078011]
[1727587833700,0.011,65771.0,65770.0,0.17299061]
[1727587836706,0.087009,65771.0,65770.0,0.09697961]
[1727587837001,0.207009,65771.0,65770.0,0.17300188]
[1727587837204,0.207009,65771.0,65770.0,0.07802227]
[1727587837398,0.207009,65771.0,65770.0,0.002]
[1727587838506,1.339138,65771.0,65770.0,0.002]
[1727587839896,1.339138,65771.0,65770.0,0.001]
[1727587841111,2.060738,65771.0,65770.0,0.001]
[1727587841498,0.076014,65767.0,65766.0,0.04561082]
[1727587841702,0.196014,65767.0,65766.0,0.04561082]
[1727587842105,0.556814,65767.0,65766.0,0.04561082]
[1727587842298,0.196014,65767.0,65765.0,0.04561082]
[1727587842498,0.4808,65766.0,65765.0,0.04561082]
[1727587843606,0.076016,65765.0,65764.0,0.04561082]
[1727587843812,0.196016,65765.0,65764.0,0.04561082]
[1727587843998,0.196016,65765.0,65762.0,0.0327]
[1727587844201,0.076019,65763.0,65762.0,0.0327]
[1727587845110,0.436819,65763.0,65762.0,0.0327]
[1727587847005,0.076019,65763.0,65762.0,0.0327]